{"text_format":"1","workbook":"xlsx","n_sheets":1,"sheets":["1,2,3,4,5,6"],"not_rendered":{"charts":0,"images":0,"macros":0,"external_links":0,"defined_names":4,"comments":0,"pivot_tables":0},"unopened":[],"bounds":{"document_bytes":16777216,"sheet_cells":100000,"rows_first":2000,"rows_last":500,"rows_between":2000,"halvings":0,"cell_chars":16384,"cell_head_chars":4096},"cells_cut":0,"cells_raw":0,"read":"whole","date_system":"1900"}

{"sheet":"1,2,3,4,5,6","index":0,"n_rows":107,"n_cols":15,"rows_kept":107,"cut":false,"hidden":false,"merged":[[76,5,76,6],[79,7,79,8],[79,11,79,12],[79,9,79,10],[72,11,72,12],[71,2,71,3],[72,2,72,3],[71,5,71,6],[71,7,71,8],[72,5,72,6],[72,7,72,8],[71,9,71,10],[71,11,71,12],[77,2,77,12],[75,9,75,10],[76,7,76,8],[76,9,76,10],[76,11,76,12],[73,2,73,12],[74,2,74,3],[75,2,75,3],[76,2,76,3],[97,0,97,15],[98,0,98,15],[92,1,92,14],[101,0,101,6],[102,0,102,6],[102,7,102,8],[102,10,102,13],[106,0,106,6],[106,7,106,8],[106,10,106,13],[103,7,103,8],[103,10,103,13],[105,0,105,6],[105,7,105,8],[105,10,105,13],[47,2,47,12],[96,0,96,15],[85,0,86,0],[85,1,86,1],[85,2,86,2],[85,3,85,5],[81,0,81,6],[82,0,83,15],[80,2,80,12],[85,6,85,8],[85,9,85,11],[85,12,85,14],[78,2,78,3],[78,5,78,6],[78,7,78,8],[78,9,78,10],[78,11,78,12],[67,2,67,3],[67,5,67,6],[67,7,67,8],[67,9,67,10],[67,11,67,12],[79,2,79,3],[79,5,79,6],[43,5,44,6],[45,5,45,6],[46,2,46,12],[43,11,44,12],[45,9,45,10],[45,11,45,12],[43,9,44,10],[43,7,44,8],[45,7,45,8],[0,10,0,12],[2,10,2,12],[6,0,6,9],[37,0,37,3],[10,3,10,13],[11,2,11,3],[12,2,12,3],[11,4,11,13],[12,4,12,13],[14,3,14,10],[7,3,7,13],[8,3,8,13],[32,0,33,3],[35,0,35,3],[34,0,34,3],[17,2,17,3],[17,5,17,6],[17,10,17,11],[22,10,22,12],[29,0,29,12],[20,1,20,9],[15,5,15,8],[16,5,16,6],[19,5,19,6],[15,9,15,12],[16,10,16,11],[19,10,19,11],[17,0,17,1],[13,1,13,8],[16,0,16,1],[16,2,16,3],[15,0,15,4],[19,0,19,1],[19,2,19,3],[18,0,18,1],[18,2,18,3],[18,5,18,6],[18,10,18,11],[64,7,64,8],[64,9,64,10],[64,11,64,12],[68,2,68,3],[68,5,68,6],[68,7,68,8],[68,9,68,10],[64,2,64,3],[64,5,64,6],[68,11,68,12],[66,2,66,12],[65,2,65,3],[65,5,65,6],[65,7,65,8],[65,9,65,10],[65,11,65,12],[74,5,74,6],[74,9,74,10],[74,11,74,12],[75,5,75,6],[74,7,74,8],[75,7,75,8],[70,2,70,12],[69,5,69,6],[69,7,69,8],[69,11,69,12],[69,2,69,3],[72,9,72,10],[69,9,69,10],[75,11,75,12],[51,7,51,8],[51,9,51,10],[51,11,51,12],[53,5,53,6],[53,7,53,8],[53,9,53,10],[53,11,53,12],[61,0,61,12],[62,2,62,12],[52,0,52,12],[63,2,63,12],[60,11,60,12],[54,2,54,3],[55,2,55,3],[57,2,57,3],[58,2,58,3],[59,2,59,3],[60,2,60,3],[59,5,59,6],[57,9,57,10],[57,11,57,12],[56,0,56,12],[55,7,55,8],[55,9,55,10],[55,11,55,12],[57,5,57,6],[57,7,57,8],[48,2,48,3],[36,0,36,3],[38,0,38,3],[21,0,21,11],[22,0,23,0],[22,1,23,1],[22,2,23,2],[22,3,23,3],[22,4,22,6],[22,7,22,9],[31,0,31,11],[32,4,32,6],[32,7,32,9],[48,5,48,6],[48,7,48,8],[48,9,48,10],[48,11,48,12],[32,10,32,12],[42,0,42,3],[43,0,44,0],[43,4,44,4],[43,2,44,3],[43,1,44,1],[45,2,45,3],[49,7,49,8],[50,0,50,12],[49,2,49,3],[51,2,51,3],[53,2,53,3],[59,7,59,8],[59,9,59,10],[59,11,59,12],[60,5,60,6],[60,7,60,8],[60,9,60,10],[49,9,49,10],[49,11,49,12],[51,5,51,6],[49,5,49,6],[58,5,58,6],[58,7,58,8],[58,9,58,10],[58,11,58,12],[54,5,54,6],[54,7,54,8],[54,9,54,10],[54,11,54,12],[55,5,55,6]]}
[null,null,null,null,null,null,null,null,null,null,"ЗАТВЕРДЖЕНО"]
[null,null,null,null,null,null,null,null,null,null,"Наказ Міністерства фінансів України"]
[null,null,null,null,null,null,null,null,null,null,"26.08.2014 N 836 "]
[]
[]
[null,null,null,null,null,null,null," ЗВІТ"]
["про виконання паспорта бюджетної програми місцевого бюджету  станом на",null,null,null,null,null,null,null,null,null,"01","січня","2019 року"]
["1.","0200000",null,"Виконавчий комітет Житомирської міської ради Житомирської області"]
[null,"(КПКВК МБ) ",null,"      (найменування головного розпорядника) "]
["2.","0210000",null,"Виконавчий комітет Житомирської міської ради Житомирської області"]
[null,"(КПКВК МБ) ",null,"      (найменування відповідального виконавця) "]
["3.","0218820",null,null,"Пільгові довгострокові кредити молодим сім'ям та одиноким молодим громадянам на будівництво-придбання житла та їх повернення"]
[null,"(КПКВК МБ) ","(КФКВК) ",null,"      (найменування бюджетної програми) "]
["4.","Видатки та надання кредитів  за бюджетною програмою за  звітний період"]
[null,null,null,null,null,null,null,null,null,null,null,"(тис. грн.)"]
["Затверджено паспортом бюджетної програми ",null,null,null,null,"Касові видатки (надані кредити)",null,null,null,"Відхилення "]
["загальний фонд ",null,"спеціальний фонд ",null,"разом ","загальний фонд ",null,"спеціальний фонд ","разом ","загальний фонд ","спеціальний фонд ",null,"разом "]
[1,null,2,null,3,4,null,5,6,7,8,null,9]
[1744.2,null,325.7,null,{"$f":"SUM(A19:D19)","v":2069.9},1744.2,null,325.7,{"$f":"SUM(F19:H19)","v":2069.9},{"$f":"A19-F19","v":0},{"$f":"H19-C19","v":0},null,{"$f":"SUM(J19:L19)","v":0}]
[null,null,null,null,{"$f":"SUM(A20:D20)","v":0},null,null,null,{"$f":"SUM(F20:H20)","v":0},{"$f":"A20-F20","v":0},{"$f":"H20-C20","v":0},null,{"$f":"SUM(J20:L20)","v":0}]
["5. ","Обсяги фінансування бюджетної програми за звітний період у розрізі підпрограм  та завдань"]
[null,null,null,null,null,null,null,null,null,null,null,null,"(тис. грн.)"]
["N з/п ","КПКВК","КФКВК","Підпрограма/зав-дання бюджетної програми","Затверджено паспортом бюджетної програми на звітний період ",null,null,"Касові видатки (надані кредити) за звітний період ",null,null,"Відхилення "]
[null,null,null,null,"загальний фонд ","спеціальний фонд ","разом ","загальний фонд ","спеціальний фонд ","разом ","загальний фонд ","спеціальний фонд ","разом "]
[1,218821,1060,"Підпрограма 1 . Надання кредиту ",1744.2,325.7,{"$f":"SUM(E25:F25)","v":2069.9},1744.2,325.7,{"$f":"SUM(H25:I25)","v":2069.9},{"$f":"E25-H25","v":0},{"$f":"SUM(I25-F25)","v":0},{"$f":"K25+L25","v":0}]
[null,218821,1060,"Завдання 1 . Надання кредиту ",1744.2,325.7,{"$f":"SUM(E26:F26)","v":2069.9},1744.2,325.7,{"$f":"SUM(H26:I26)","v":2069.9},{"$f":"E26-H26","v":0},{"$f":"SUM(I26-F26)","v":0},{"$f":"K26+L26","v":0}]
[2,218821,1060,"Підпрограма 2. Витрати пов\"язані з наданням  пільгового довгострокового кредиту громадянам на будівництво (реконструкцію) та придбання житла",null,null,{"$f":"SUM(E27:F27)","v":0},null,null,{"$f":"SUM(H27:I27)","v":0},0,{"$f":"SUM(I27-F27)","v":0},{"$f":"K27+L27","v":0}]
[null,"0318108",1060,"Завдання1. Витрати пов\"язані з наданням  пільгового довгострокового кредиту громадянам на будівництво (реконструкцію) та придбання житла",null,null,{"$f":"SUM(E28:F28)","v":0},null,null,{"$f":"SUM(H28:I28)","v":0},{"$f":"E28-H28","v":0},{"$f":"SUM(I28-F28)","v":0},{"$f":"K28+L28","v":0}]
[null,null,null,"Усього",{"$f":"SUM(E26:E28)","v":1744.2},{"$f":"SUM(F26:F28)","v":325.7},2069.9,1744.2,325.7,{"$f":"SUM(J25+J27)","v":2069.9},0,{"$f":"SUM(L25+L27)","v":0},{"$f":"SUM(K29:L29)","v":0}]
[]
["6. ","Видатки на реалізацію регіональних цільових програм, які виконуються в межах бюджетної програми, за звітний період"]
[null,null,null,null,null,null,null,null,null,null,null,null,"(тис. грн.)"]
["Назва  регіональної цільової програми  та підпрограми",null,null,null,"Затверджено паспортом бюджетної програми на звітний період ",null,null,"Касові видатки ( надані кредити) за звітний період",null,null,"Відхилення "]
[null,null,null,null,"загальний фонд ","спеціальний фонд ","разом ","загальний фонд ","спеціальний фонд ","разом ","загальний фонд ","спеціальний фонд ","разом "]
[1,null,null,null,2,3,4,5,6,7,8,9,10]
["Регіональна цільова програма 1 "]
["Міська програма забезпечення молодих сімей та одиноких громадян житлом в м.Житомирі на 2018-2022 роки",null,null,null,1744.2,325.7,{"$f":"SUM(E37:F37)","v":2069.9},1744.2,325.7,{"$f":"SUM(H37:I37)","v":2069.9},{"$f":"E37-H37","v":0},{"$f":"I37-F37","v":0},{"$f":"K37+L37","v":0}]
["Програма забезпечення молодих сімей та одиноких молодих громадян житлом в м.Житомирі на 2013 -2017 роки",null,null,null,null,null,{"$f":"SUM(E38:F38)","v":0},null,null,{"$f":"SUM(H38:I38)","v":0},0,{"$f":"I38-F38","v":0},{"$f":"K38+L38","v":0}]
["Усього",null,null,null,{"$f":"SUM(E37:E38)","v":1744.2},{"$f":"SUM(F37:F38)","v":325.7},2069.9,1744.2,325.7,2069.9,0,0,0]
[]
["7. Результативні показники бюджетної програми, та аналіз їх виконання за звітний період"]
[]
[]
["N з/п ","КПКВК","Показники ",null,"Одиниця виміру ","Джерело інформації ",null,"Затверджено паспортом бюджетної програми на звітний період",null,"Виконано за звітний період ( касові видатки/надані кредити)",null,"Відхилення"]
[]
[1,2,3,null,4,5,null,6,null,7,null,8]
[null,null,"Підпрограма 1. Надання кредиту "]
[null,"0218821","Завдання 1. Надання кредиту "]
[null,null,"затрат"]
[null,null,"кількість сімей, які перебувають на обліку",null,"од.","реєстр",null,128,null,131,null,{"$f":"J50-H50","v":3}]
["Збільшилась кількість звернень громадян"]
[null,"0218821","обсяг витрат, які передбачені для надання довгострокового кредиту громадянам на будівництво (реконструкцію) та придбання житла",null,"тис.грн.","рішення міської ради від 18.12.2017 №881 зі змінами",null,2069.9,null,2069.9,null,{"$f":"J52-H52","v":0}]
[]
[null,null,"продукту"]
[null,"0218821","кількість сімей, яким планується надати кредит",null,"од.","розрахункові показники",null,4,null,4,null,{"$f":"J55-H55","v":0}]
[null,"0218821","площа, яку планується надати",null,"м.кв.","розрахункові показники",null,256.74,null,256.74,null,0]
["Фактичний результативний показник менший у порівнянні з затвердженим у зв'язку із збільшенням вартості 1 кв.м., та  використанням коштів спецфонду в межах надходжень"]
[null,null,"ефективності"]
[null,"0218821","середні витрати на надання кредиту на 1 сім'ю ",null,"тис.грн.","розрахункові показники",null,517.48,null,517.48,null,{"$f":"J59-H59","v":0}]
[null,null,"якості"]
[null,"0218821","Відсоток молодих сімей, яким планується надати житло, до кількості сімей, що перебувають на обліку",null,"%","розрахункові показники",null,3.1,null,3.1,null,{"$f":"J61-H61","v":0}]
[]
[null,null,"Підпрограма 2. Витрати, пов'язані з наданням та обслуговуванням пільгових довгострокових кредитів, наданих громадянам на будівництво (реконструкцію) та придбання житла"]
[null,null,"завдання 1.  Витрати, пов'язані з наданням та обслуговуванням пільгових довгострокових кредитів, наданих громадянам на будівництво (реконструкцію) та придбання житла"]
[1,null,"затрат"]
[null,"0318108","Кількість громадян (сімей), які перебувають на обліку",null,"од.","реєстр",null,117,null,119,null,{"$f":"J66-H66","v":2}]
[null,null,"Громадяни(сім'ї), які вибули протягом звітного року у звязку з досягененням граничного віку 36 років та(або) отриманням кредитів."]
[null,"0318108","обсяг витрат, пов'язаних з наданням та обслуговуванням пільгових довгострокових кредитів, наданих громадянам на будівництво (реконструкцію) та придбання житла",null,"од.","рішення міської ради від 21.12.2016 №42 зі змінами",null,71.8,null,69.8,null,{"$f":"J68-H68","v":-2}]
[2,null,"продукту"]
[null,"0318108","Кількість укладених договорів, за якими планується здійснювати обслуговування кредитів",null,"од.","розрахункові показники",null,3,null,3,null,{"$f":"J70-H70","v":0}]
[]
[3,null,"ефективності"]
[null,"0318090","Середні витрати на обслуговування одного кредитного договору",null,"грн","розрахункові показники",null,23.9,null,{"$f":"J28/J70","v":0},null,{"$f":"J73-H73","v":-23.9}]
[null,null,"Фактичний результативний показник менший у порівнянні з затвердженим у зв'язку з тим , що кошти із спецфонду  використані в межах надходжень"]
[null,null,"якості"]
[null,null,"показник"]
[null,null,"…"]
[null,null,"Пояснення щодо причин розбіжностей між затвердженими та досягнутими результативними показниками"]
[4,null,"якості"]
[null,"0318090","Динаміка зростання витрат на обслуговування одного кредитного договору порівняно з  попереднім роком",null,"%","розрахунково",null,130.19999999999999,null,{"$f":"J73/H73*100","v":0},null,{"$f":"J80-H80","v":-130.19999999999999}]
[null,null,"Фактичний результативний показник менший у порівнянні з затвердженим у зв'язку з тим , що один з кредитів наданий частково та змішаний з коштами обласного бюджету"]
[]
["8. Джерела фінансування інвестиційних проектів у розрізі підпрограм 3"]
[]
[null,null,null,null,null,null,null,null,null,null,null,null,null,null,"(тис. грн.)"]
["Код","Найменування джерел надходжень ","КПКВК","Касові видатки станом на 01 січня звітного періоду ",null,null,"План видатків звітного періоду ",null,null,"Касові видатки за звітний період ",null,null,"Прогноз видатків до кінця реалізації  інвестиційного проекту "]
[null,null,null,"загальний фонд ","спеціальний фонд ","разом ","загальний фонд ","спеціальний фонд ","разом ","загальний фонд ","спеціальний фонд ","разом ","загальний фонд ","спеціальний фонд ","разом "]
[1,2,"3.",4,5,6,7,8,9,10,11,12,13,14,15]
[null,"Підпрограма 1",null,"  ","  ","  ","  ","  ","  ","  ","  ","  ","  ","  ","  "]
[null,"Інвестиційний проект 1",null,"  ",null,"  ","  ",null,"  ","  ",null,"  ","  ","  ","  "]
[null,"Надходження із бюджету"]
[null,"Інші джерела фінансування (за видами) ",null,"Х ","  ",null,"Х ","  ","  ","Х ","  ","  ","Х ","  ","  "]
[null,"Пояснення щодо розбіжностей між фактичними надходженнями і тими, що затверджені паспортами бюджетної програми"]
[null,"Інвестиційний проект 2"]
[null,"Усього",null,null,null,null,null,null,null,null,null,null,null,null,"  "]
[]
["1 Код функціональної класифікації видатків та кредитування бюджету вказується лише у випадку, коли бюджетна програма не поділяється на підпрограми."]
["2 Зазначаються усі підпрограми та завдання, затверджені паспортом бюджетної програми."]
["3 Пункт 8 заповнюється тільки для затверджених у місцевому бюджеті видатків/ надання кредитів на реалізацію інвестиційних проектів ( програм)."]
[]
[]
["Керівник установи головного розпорядника"]
["бюджетних коштів ",null,null,null,null,null,null,null,null,null,"Сухомлин С.І."]
[null,null,null,null,null,null,null,"(підпис) ",null,null,"(прізвище та ініціали) "]
[]
["Головний бухгалтер установи головного розпорядника",null,null,null,null,null,null,null,null,null,"Борецька Н.В."]
["бюджетних коштів ",null,null,null,null,null,null,"(підпис) ",null,null,"(прізвище та ініціали) "]